bitfinex-derivatives/quotes_SOLF0:USTF0_20230103
["timestamp","ask_amount","ask_price","bid_price","bid_amount"]
[1672722984833,3.0,11.577,11.551,8.93444054]
[1672722985049,11.66,11.57,11.552,11.75]
[1672722985260,50.0,11.577,11.552,11.75]
[1672722985261,11.75,11.564,11.552,5.93444054]
[1672722985575,0.06108046,11.562,11.554,0.063597]
[1672722988832,13.86962552,11.557,11.554,0.063597]
[1672722989043,3.0,11.556,11.551,0.06540203]
[1672722989356,0.06211944,11.558,11.55,36.13037448]
[1672722989566,3.0,11.571,11.556,11.72]
[1672722989775,3.0,11.571,11.557,3.0]
[1672722989986,3.0,11.571,11.557,8.93444054]
[1672722990408,0.07060553,11.568,11.56,0.071394]
[1672722990931,3.0,11.565,11.557,5.45552856]
[1672722991139,11.75,11.566,11.557,5.45552856]
[1672722991345,13.86962552,11.577,11.558,3.0]
[1672722991556,13.86962552,11.577,11.561,3.0]
[1672722991976,11.75,11.572,11.565,0.06832174]
[1672722992195,11.75,11.569,11.552,11.75]
[1672722992395,3.0,11.568,11.553,3.0]
[1672722992609,3.0,11.568,11.553,8.45586716]
[1672722993031,3.0,11.568,11.554,5.45586716]
[1672722993350,0.0703956,11.565,11.559,36.13037448]
[1672722993664,0.06594189,11.566,11.558,0.06154256]
[1672722993873,0.06275815,11.566,11.558,0.06050072]
[1672722995024,25.59238367,11.566,11.558,0.06050072]
[1672722995235,3.0,11.565,11.55,3.0]
[1672722995867,3.0,11.571,11.55,3.0]
[1672722995868,16.86962552,11.576,11.56,3.0]
[1672722996280,0.06446805,11.572,11.564,0.0634035]
[1672722996710,11.75,11.571,11.564,0.0634035]
[1672722996913,11.67,11.565,11.561,0.01029138]
[1672722997125,3.0,11.57,11.559,36.13037448]
[1672722997549,3.0,11.57,11.56,5.04587753]
[1672722997759,16.86962552,11.576,11.561,3.0]
[1672722997969,0.06686306,11.573,11.564,0.06711649]
[1672722998599,0.06686306,11.573,11.569,36.13037448]
[1672722998809,3.0,11.584,11.569,36.13037448]
[1672722999020,3.0,11.584,11.563,3.0]
[1672722999542,3.0,11.584,11.564,4.65984233]
[1672722999752,3.0,11.577,11.564,4.65984233]
[1672722999963,3.06940519,11.575,11.57,0.06561673]
[1672723000285,61.00662552,11.586,11.572,11.72]
[1672723000487,13.86962552,11.586,11.572,11.72]
[1672723000909,13.86962552,11.586,11.573,7.65984233]
[1672723001125,3.0,11.585,11.574,3.0]
[1672723001439,0.06713078,11.584,11.575,0.06983001]
[1672723001751,0.06713078,11.584,11.575,4.72967234]
[1672723002696,0.06713078,11.584,11.575,0.06983001]
[1672723003016,0.06713078,11.584,11.575,11.78983001]
[1672723003226,0.06713078,11.584,11.575,0.06983001]
[1672723003438,11.81713078,11.584,11.575,0.06983001]
[1672723003646,3.0,11.583,11.569,36.13037448]
[1672723003965,11.66,11.581,11.57,4.63004971]
[1672723004172,3.0,11.58,11.57,4.63004971]
[1672723004383,3.0,11.58,11.565,11.75]
[1672723004696,3.0,11.58,11.568,0.06855712]
[1672723004697,13.86962552,11.576,11.568,0.06855712]
[1672723005320,0.06992914,11.577,11.568,0.06855712]
[1672723006056,0.06992914,11.577,11.569,36.13037448]
[1672723006274,0.06992914,11.577,11.569,47.88037448]
[1672723006480,0.06992914,11.577,11.57,7.63004971]
[1672723006896,0.06992914,11.577,11.571,4.63004971]
[1672723008267,3.0,11.592,11.576,47.88037448]
[1672723008478,3.0,11.592,11.581,11.75]
[1672723008794,3.0,11.592,11.575,11.75]
[1672723009004,13.86962552,11.585,11.575,11.75]
[1672723009321,0.07102653,11.584,11.576,0.06237644]
[1672723009531,0.07102653,11.584,11.578,47.88037448]
[1672723009734,0.07102653,11.584,11.578,11.75]
[1672723009949,0.07102653,11.584,11.576,0.06237644]
[1672723010789,13.86962552,11.595,11.583,11.75]
[1672723011000,3.0,11.594,11.583,11.75]
[1672723011524,3.0,11.592,11.575,11.72]
[1672723011729,0.06690514,11.588,11.579,0.07121726]
[1672723012574,0.06690514,11.588,11.579,4.68448342]
[1672723012785,0.06690514,11.588,11.579,7.68448342]
[1672723012991,0.06690514,11.588,11.582,3.0]
[1672723013413,0.00690514,11.588,11.587,11.75]
[1672723013620,11.67,11.605,11.584,11.72]
[1672723013833,13.86962552,11.604,11.589,3.0]
[1672723014038,3.0,11.603,11.589,3.0]
[1672723014253,3.0,11.603,11.59,4.61326616]
[1672723014461,0.06508535,11.601,11.592,0.06292185]
[1672723015413,13.86962552,11.594,11.592,0.06292185]
[1672723015625,13.86962552,11.594,11.589,0.06857702]
[1672723015934,13.86962552,11.594,11.587,0.06052544]
[1672723016148,13.86962552,11.594,11.567,100.97037448]
[1672723016149,14.75,11.593,11.586,0.06312367]
[1672723016352,3.0,11.592,11.585,0.06328567]
[1672723016566,3.0,11.592,11.584,0.06650441]
[1672723016776,0.0634416,11.594,11.584,11.81746326]
[1672723017094,0.0634416,11.594,11.584,0.06746326]
[1672723017095,13.86962552,11.585,11.584,0.06746326]
[1672723017411,3.0,11.584,11.559,64.88]
[1672723017619,3.0,11.584,11.568,36.13037448]
[1672723017830,3.0,11.584,11.561,64.87]
[1672723018041,11.66,11.583,11.568,36.13037448]
[1672723018356,0.0671711,11.58,11.571,0.068799]
[1672723018557,0.0671711,11.58,11.571,0.06400073]
[1672723019090,0.0671711,11.58,11.576,11.75]
[1672723019298,16.86962552,11.593,11.57,4.62378915]
[1672723019299,3.0,11.59,11.574,3.0]
[1672723019508,3.0,11.59,11.577,4.62378915]
[1672723019928,3.0,11.59,11.575,4.62378915]
[1672723020138,13.86962552,11.583,11.575,4.62378915]
[1672723020347,0.06315895,11.583,11.577,36.13037448]
[1672723020667,0.06315895,11.583,11.578,3.0]
[1672723020869,0.06315895,11.583,11.578,4.62378915]
[1672723021079,13.93278447,11.583,11.578,4.62378915]
[1672723021397,11.66,11.58,11.562,11.72]
[1672723021610,3.0,11.579,11.563,3.0]
[1672723021815,3.0,11.579,11.563,7.38795001]
[1672723022348,13.86962552,11.583,11.572,11.75]
[1672723022660,13.86962552,11.583,11.573,7.38795001]
[1672723022869,13.86962552,11.593,11.581,11.75]
[1672723023082,13.86962552,11.593,11.578,3.0]
[1672723023291,3.0,11.592,11.579,11.75]
[1672723023502,3.0,11.592,11.569,3.0]
[1672723023712,13.86962552,11.583,11.558,64.89]
[1672723023925,3.0,11.582,11.57,4.0371015]
[1672723024336,0.06596383,11.58,11.572,0.07009326]
[1672723024968,14.66,11.594,11.577,36.13037448]
[1672723025288,13.86962552,11.612,11.586,36.13037448]
[1672723025500,3.0,11.611,11.587,3.0]
[1672723025710,3.0,11.611,11.595,11.72]
[1672723025919,3.0,11.611,11.596,3.0]
[1672723026125,13.86962552,11.602,11.599,0.06098111]
[1672723026341,13.86962552,11.602,11.596,3.06067151]
[1672723026546,13.86962552,11.602,11.596,0.06067151]
[1672723027070,3.0,11.601,11.583,11.72]
[1672723027279,3.0,11.601,11.581,3.0]
[1672723027494,13.86962552,11.592,11.584,3.71603647]
[1672723027701,3.0,11.601,11.586,36.13037448]
[1672723028125,0.0656341,11.598,11.589,0.06785133]
[1672723029282,3.0,11.597,11.587,11.75]
[1672723029495,13.86962552,11.602,11.588,3.0]
[1672723029705,3.0,11.609,11.588,6.69284753]
[1672723029916,13.86962552,11.612,11.595,36.13037448]
[1672723030128,13.86962552,11.612,11.596,3.0]
[1672723030337,0.06657879,11.608,11.6,11.81867374]
[1672723031383,0.06657879,11.608,11.601,3.0]
[1672723031599,13.86962552,11.622,11.606,11.66]
[1672723031913,3.0,11.621,11.611,11.66]
[1672723032124,50.0,11.633,11.612,3.0]
[1672723032328,13.86962552,11.621,11.612,3.0]
[1672723032542,3.0,11.62,11.607,3.0]
[1672723032965,0.06667829,11.618,11.609,0.06706289]
[1672723033173,11.75,11.616,11.608,3.66268247]
[1672723033384,13.86962552,11.611,11.598,3.0]
[1672723033591,3.0,11.615,11.598,6.67606489]
[1672723033802,3.0,11.615,11.601,11.75]
[1672723034010,47.08,11.639,11.605,36.13037448]
[1672723034326,0.06546298,11.626,11.618,0.07134777]
[1672723034535,11.68,11.669,11.619,64.55]
[1672723034748,50.1311,11.658,11.635,11.75]
[1672723034957,13.86962552,11.641,11.632,11.75]
[1672723035166,3.0,11.64,11.632,11.75]
[1672723035478,3.0,11.649,11.632,11.75]
[1672723035693,3.0,11.649,11.638,11.72]
[1672723035900,3.0,11.649,11.635,11.66]
[1672723036114,0.06028885,11.648,11.639,0.0620573]
[1672723036327,50.0,11.673,11.628,11.65]
[1672723036328,13.86962552,11.661,11.64,64.43]
[1672723036636,3.0,11.66,11.641,6.33864911]
[1672723036846,3.0,11.66,11.649,11.75]
[1672723037061,13.86962552,11.651,11.642,14.75]
[1672723037271,0.06860576,11.651,11.642,11.81861353]
[1672723037476,13.86962552,11.65,11.642,11.81861353]
[1672723037796,13.86962552,11.65,11.643,3.0]
[1672723038003,3.2222585,11.65,11.643,3.0]
[1672723038632,3.2222585,11.65,11.639,3.0]
[1672723038944,0.0654188,11.649,11.643,11.75]
[1672723039159,0.0654188,11.649,11.639,3.0]
[1672723039160,0.0654188,11.649,11.646,11.75]
[1672723039475,3.2222585,11.65,11.646,11.75]
[1672723040420,3.2222585,11.67,11.649,58.75]
[1672723040625,3.0,11.671,11.66,11.75]
[1672723040835,3.2222585,11.661,11.656,11.72]
[1672723041053,3.2222585,11.661,11.65,3.0]
[1672723041255,50.0,11.662,11.649,11.75]
[1672723041467,0.06380528,11.66,11.639,3.0]
[1672723041675,3.2222585,11.65,11.646,11.7]
[1672723041885,3.0,11.646,11.619,64.55]
[1672723042099,3.0,11.646,11.617,11.68]
[1672723042309,3.2222585,11.64,11.62,3.35776519]
[1672723042730,3.2222585,11.64,11.621,3.0]
[1672723042941,3.2222585,11.63,11.624,11.75]
[1672723043361,0.06209108,11.631,11.629,11.67]
[1672723043572,0.06610257,11.634,11.629,11.67]
[1672723043778,0.06131105,11.636,11.629,11.67]
[1672723043988,0.06824036,11.637,11.629,11.67]
[1672723044199,0.06245419,11.637,11.63,3.35776519]
[1672723044622,0.06245419,11.637,11.629,0.06788788]
[1672723044831,3.2222585,11.63,11.617,11.67]
[1672723045040,3.2222585,11.63,11.624,3.35968601]
[1672723045460,3.2222585,11.63,11.619,3.35968601]
[1672723045671,3.2222585,11.62,11.612,11.75]
[1672723045877,3.2222585,11.62,11.616,3.15985531]
[1672723046088,3.29234717,11.62,11.616,3.15985531]
[1672723046300,3.29234717,11.62,11.597,47.08]
[1672723046301,3.0,11.619,11.605,11.75]
[1672723046509,3.2222585,11.611,11.605,11.75]
[1672723046721,3.2222585,11.611,11.606,3.16155386]
[1672723047558,3.2222585,11.611,11.604,0.07118866]
[1672723047773,3.2222585,11.61,11.604,0.07118866]
[1672723048196,0.06290883,11.613,11.604,0.07118866]
[1672723048405,3.2222585,11.61,11.606,11.75]
[1672723048608,0.06290883,11.613,11.604,0.07118866]
[1672723048824,3.2222585,11.61,11.604,0.07118866]
[1672723049036,3.2222585,11.61,11.604,3.23274252]
[1672723049350,3.2222585,11.61,11.604,0.07118866]
[1672723049561,3.0,11.609,11.597,11.75]
[1672723049767,3.2222585,11.601,11.59,11.67]
[1672723050086,61.66,11.602,11.578,64.78]
[1672723050295,3.0,11.609,11.591,3.16556341]
[1672723050296,6.2222585,11.601,11.591,3.16556341]
[1672723050710,0.06042314,11.6,11.592,0.06896874]
[1672723050924,0.06296567,11.6,11.592,0.0661342]
[1672723051450,0.06296567,11.6,11.592,3.23169761]
[1672723051662,3.28522417,11.6,11.592,0.0661342]
[1672723051976,3.28522417,11.6,11.591,3.16556341]
[1672723051977,3.0,11.599,11.581,14.75]
[1672723052187,3.0,11.599,11.587,11.75]
[1672723052394,3.0,11.601,11.587,11.75]
[1672723052605,3.0,11.601,11.588,3.16465093]
[1672723052920,3.0,11.601,11.589,3.0]
[1672723053230,0.06642655,11.599,11.591,0.06846191]
[1672723053446,0.06642655,11.599,11.591,11.81846191]
[1672723053866,0.06642655,11.599,11.592,6.16465093]
[1672723054183,47.03,11.618,11.592,6.16465093]
[1672723054184,3.2222585,11.61,11.598,3.0]
[1672723054805,3.2222585,11.61,11.599,3.16465093]
[1672723055127,0.06470653,11.609,11.6,0.06116525]
[1672723055329,3.06470653,11.609,11.6,0.06116525]
[1672723055541,3.2222585,11.601,11.6,0.06116525]
[1672723055757,3.2222585,11.601,11.599,3.16465093]
[1672723056172,3.0,11.6,11.586,11.75]
[1672723056701,3.2222585,11.601,11.587,6.1642892]
[1672723056911,3.0,11.604,11.587,6.1642892]
[1672723057121,3.0,11.604,11.588,3.1642892]
[1672723057327,0.06632635,11.6,11.592,0.06330806]
[1672723057545,3.28858485,11.6,11.592,0.06330806]
[1672723057755,0.06632635,11.6,11.592,0.06330806]
[1672723058383,11.75,11.598,11.581,3.0]
[1672723058589,3.0,11.597,11.581,3.0]
[1672723059013,3.2222585,11.59,11.582,3.16625694]
[1672723059435,3.2852681,11.59,11.582,3.23462946]
[1672723059853,3.2852681,11.59,11.582,0.06837252]
[1672723060065,3.2852681,11.59,11.585,3.0]
[1672723060489,0.0630096,11.59,11.584,11.72]
[1672723060700,3.2852681,11.59,11.586,3.16625694]
[1672723061226,3.2852681,11.59,11.585,3.16625694]
[1672723061431,3.0,11.589,11.582,0.06837252]
[1672723061647,3.0,11.589,11.578,2.70586626]
[1672723062068,3.2222585,11.59,11.579,3.16650534]
[1672723062699,0.06585412,11.589,11.58,0.07074571]
[1672723063120,11.76585412,11.589,11.58,0.07074571]
[1672723063329,3.2222585,11.581,11.571,11.75]
[1672723063853,3.2222585,11.581,11.572,3.16832413]
[1672723064382,3.28765128,11.581,11.572,3.2332674]
[1672723064694,3.28765128,11.581,11.572,0.06494327]
[1672723064905,3.0,11.58,11.572,0.06494327]
[1672723065326,3.28765128,11.581,11.572,0.06494327]
[1672723065849,3.28765128,11.581,11.572,3.2332674]
[1672723066587,11.72,11.579,11.562,11.75]
[1672723066798,3.0,11.578,11.562,11.75]
[1672723067114,3.0,11.578,11.563,3.17055275]
[1672723067321,3.2222585,11.57,11.563,3.17055275]
[1672723067738,0.06490435,11.571,11.565,11.7]
[1672723068270,3.2222585,11.58,11.57,3.0]
[1672723068899,3.2222585,11.58,11.571,3.17055275]
[1672723069109,3.28832073,11.58,11.571,3.23597044]
[1672723069425,3.28832073,11.58,11.572,3.0]
[1672723069632,3.28832073,11.58,11.571,0.06541769]
[1672723069845,3.28832073,11.58,11.573,3.17055275]
[1672723070054,3.28832073,11.58,11.574,3.0]
[1672723070264,0.06606223,11.58,11.574,3.0]
[1672723070577,3.28832073,11.58,11.571,0.06541769]
[1672723070787,3.28832073,11.58,11.575,3.17055275]
[1672723071308,0.06606223,11.58,11.573,0.06891951]
[1672723071524,3.0,11.579,11.57,3.17055275]
[1672723071733,3.0,11.579,11.568,3.17055275]
[1672723071941,11.75,11.578,11.568,3.17055275]
[1672723072149,3.0,11.577,11.565,3.17055275]
[1672723072570,0.06303701,11.575,11.567,0.0662238]
[1672723074572,11.81303701,11.575,11.567,0.0662238]
[1672723074784,3.2222585,11.57,11.561,3.17055275]
[1672723074993,3.0,11.574,11.561,3.17055275]
[1672723075520,11.7,11.569,11.558,3.17055275]
[1672723075729,3.06759194,11.568,11.562,3.17055275]
[1672723076044,0.07013395,11.569,11.562,3.17055275]
[1672723076253,0.07013395,11.569,11.561,0.06976267]
[1672723079091,0.07013395,11.569,11.561,3.24031542]
[1672723079413,0.07013395,11.569,11.561,0.06976267]
[1672723080986,0.07013395,11.569,11.555,3.17055275]
[1672723080987,11.75,11.568,11.555,3.17055275]
[1672723081300,3.0,11.567,11.552,3.0]
[1672723081715,3.0,11.567,11.553,3.17055275]
[1672723081929,0.06351276,11.564,11.559,11.72]
[1672723082137,3.2222585,11.57,11.56,3.0]
[1672723082770,3.2222585,11.57,11.561,3.17055275]
[1672723083086,3.29152638,11.57,11.561,3.23824279]
[1672723084140,3.29152638,11.57,11.561,0.06769004]
[1672723085707,0.06926788,11.57,11.561,0.06769004]
[1672723085927,3.29152638,11.57,11.561,0.06769004]
[1672723088022,3.0,11.569,11.55,11.75]
[1672723088233,11.65,11.567,11.55,11.75]
[1672723088444,11.65,11.567,11.551,3.0]
[1672723088655,3.2222585,11.56,11.551,3.17305037]
[1672723089075,3.29078495,11.56,11.551,3.23344852]
[1672723089279,3.29078495,11.56,11.556,11.75]
[1672723089280,0.06852645,11.56,11.556,11.75]
[1672723089494,3.2222585,11.57,11.559,11.72]
[1672723090015,3.2222585,11.57,11.56,3.17305037]
[1672723090334,3.0,11.569,11.56,3.17305037]
[1672723090544,0.0624321,11.564,11.555,0.06566631]
[1672723090750,3.2222585,11.56,11.555,0.06660599]
[1672723091167,0.06749012,11.562,11.556,11.75]
[1672723091384,11.7,11.576,11.559,11.75]
[1672723091804,11.7,11.576,11.56,3.17318949]
[1672723092119,3.2222585,11.57,11.56,3.17318949]
[1672723092329,0.0638937,11.569,11.561,0.06734887]
[1672723094744,0.0638937,11.569,11.566,11.75]
[1672723094959,3.2222585,11.57,11.568,11.75]
[1672723095169,0.07015069,11.573,11.568,11.75]
[1672723095381,0.0653102,11.575,11.568,11.75]
[1672723095695,0.06879752,11.576,11.569,3.17318949]
[1672723095903,0.07012013,11.577,11.569,3.17318949]
[1672723096219,0.07027972,11.577,11.569,3.23740951]
[1672723096848,0.07027972,11.577,11.569,0.06422002]
[1672723098738,3.2222585,11.57,11.569,0.06422002]
[1672723098952,3.2222585,11.57,11.567,3.17318949]
[1672723102207,53.9039,11.586,11.569,11.75]
[1672723102829,53.9039,11.586,11.57,3.17318949]
[1672723103261,0.06804148,11.582,11.574,0.06980738]
[1672723103676,3.06804148,11.582,11.574,0.06980738]
[1672723103886,53.06804148,11.582,11.574,0.06980738]
[1672723106720,3.06804148,11.582,11.574,0.06980738]
[1672723107456,3.0,11.581,11.574,7.38e-06]
[1672723107666,3.0,11.581,11.565,3.17318949]
[1672723107667,3.0,11.579,11.565,3.17318949]
[1672723107879,3.0,11.579,11.562,3.17318949]
[1672723108091,3.0,11.579,11.563,3.0]
[1672723108402,3.0,11.579,11.564,3.17318949]
[1672723108717,0.06892513,11.576,11.567,0.06444961]
[1672723110604,0.06892513,11.576,11.57,11.66]
[1672723110819,0.06892513,11.576,11.571,3.0]
[1672723111135,0.06892513,11.576,11.572,3.17318949]
[1672723111970,0.06892513,11.576,11.573,11.7]
[1672723112185,0.06087452,11.579,11.573,11.7]
[1672723112499,0.06487218,11.58,11.574,3.17318949]
[1672723112713,0.06041971,11.581,11.574,3.17318949]
[1672723113025,0.06830832,11.582,11.574,3.17318949]
[1672723113235,50.0,11.592,11.577,3.0]
[1672723113549,3.0,11.591,11.577,3.0]
[1672723113761,3.0,11.591,11.578,3.17318949]
[1672723114175,50.4471,11.607,11.585,11.75]
[1672723114176,61.75,11.602,11.585,11.75]
[1672723114389,0.06271893,11.598,11.589,0.0670526]
[1672723114603,0.06271893,11.598,11.589,0.07002946]
[1672723115021,0.06271893,11.598,11.589,3.07002946]
[1672723115337,0.06271893,11.598,11.589,6.24321895]
[1672723115754,0.06271893,11.598,11.591,3.0]
[1672723115964,46.8907,11.606,11.595,3.0]
[1672723116177,46.8907,11.606,11.598,11.75]
[1672723116387,3.0,11.616,11.599,3.0]
[1672723116598,3.0,11.616,11.599,6.17318949]
[1672723117018,0.06934187,11.612,11.603,0.06276234]
[1672723117227,0.06934187,11.612,11.603,0.06950467]
[1672723118174,11.66,11.611,11.603,0.06950467]
[1672723118490,3.0,11.61,11.603,0.06950467]
[1672723118906,3.0,11.607,11.59,11.75]
[1672723119324,3.0,11.607,11.592,3.16487311]
[1672723119646,11.67,11.608,11.593,3.0]
[1672723119856,0.06682425,11.605,11.596,0.06522319]
[1672723120169,0.06682425,11.605,11.596,0.06374979]
[1672723121426,0.06682425,11.605,11.596,11.81374979]
[1672723121634,11.67,11.617,11.595,3.0]
[1672723121635,11.67,11.617,11.599,11.75]
[1672723121851,11.67,11.617,11.6,3.0]
[1672723122482,58.6407,11.621,11.603,3.0]
[1672723122688,0.07131749,11.616,11.608,0.06811857]
[1672723122901,0.07131749,11.616,11.608,0.06070928]
[1672723122902,0.06643881,11.616,11.608,0.06070928]
[1672723123533,0.06643881,11.616,11.611,11.72]
[1672723123743,3.0,11.629,11.615,3.0]
[1672723124689,3.0,11.629,11.614,11.75]
[1672723124899,0.06666943,11.626,11.618,0.06787185]
[1672723127738,11.65,11.623,11.61,3.16023529]
[1672723127946,3.0,11.622,11.61,3.16023529]
[1672723128156,3.0,11.622,11.606,3.16023529]
[1672723128367,3.0,11.622,11.607,3.0]
[1672723128786,0.06290221,11.619,11.61,0.0638768]
[1672723129204,3.06290221,11.619,11.61,0.0638768]
[1672723129524,11.75,11.617,11.61,0.0638768]
[1672723129735,3.0,11.616,11.6,6.16023529]
[1672723129945,3.0,11.616,11.601,3.16023529]
[1672723130888,0.07017419,11.613,11.604,0.06905447]
[1672723132254,0.07017419,11.613,11.604,3.22928976]
[1672723132570,0.07017419,11.613,11.604,0.06905447]
[1672723134044,0.07017419,11.613,11.608,11.75]
[1672723134469,0.07017419,11.613,11.609,3.16023529]
[1672723135410,0.07017419,11.613,11.606,3.22096876]
[1672723136247,11.75,11.626,11.606,3.22096876]
[1672723136248,11.75,11.626,11.609,11.75]
[1672723136454,50.0,11.632,11.612,11.75]
[1672723136668,3.0,11.631,11.613,3.0]
[1672723137093,3.0,11.631,11.614,3.16023529]
[1672723137304,3.0,11.631,11.618,0.06012308]
[1672723137616,50.0,11.652,11.615,3.0]
[1672723137827,50.0,11.642,11.615,3.0]
[1672723138037,3.0,11.641,11.616,3.16023529]
[1672723138247,52.1019,11.641,11.617,3.0]
[1672723138670,11.66,11.627,11.616,3.16023529]
[1672723138871,11.7,11.625,11.618,3.16023529]
[1672723139082,3.0,11.624,11.618,3.16023529]
[1672723139297,52.1019,11.634,11.618,11.75]
[1672723139506,52.1019,11.634,11.619,3.0]
[1672723139715,0.06293828,11.631,11.622,0.06798498]
[1672723139929,3.0,11.63,11.598,64.67]
[1672723140139,3.0,11.63,11.607,11.72]
[1672723140140,11.7,11.626,11.607,11.72]
[1672723140350,52.1019,11.625,11.608,3.0]
[1672723140660,49.1019,11.625,11.614,50.0]
[1672723140877,0.06600251,11.624,11.615,3.0686371]
[1672723141083,0.06600251,11.624,11.617,11.75]
[1672723141500,0.06600251,11.624,11.623,50.0]
[1672723141716,0.06605958,11.628,11.623,11.75]
[1672723141926,46.5609,11.642,11.627,11.72]
[1672723142129,3.0,11.641,11.623,3.15892977]
[1672723142760,0.06653928,11.636,11.628,0.06588993]
[1672723143084,3.0,11.633,11.628,0.06588993]
[1672723143287,0.06653928,11.636,11.628,0.06588993]
[1672723144761,3.06653928,11.636,11.628,0.06588993]
[1672723145077,3.0,11.633,11.616,11.75]
[1672723145601,3.0,11.633,11.617,3.15739237]
[1672723145811,50.3522,11.633,11.618,3.0]
[1672723146016,11.75,11.628,11.621,0.06431936]
[1672723146227,3.0,11.624,11.617,3.15739237]
[1672723146440,3.0,11.624,11.611,3.15739237]
[1672723146864,3.0,11.624,11.608,3.15739237]
[1672723147076,50.3522,11.624,11.609,3.0]
[1672723147381,0.06970669,11.621,11.612,0.06172157]
[1672723150644,3.0,11.62,11.606,11.67]
[1672723150855,3.0,11.62,11.607,6.15960733]
[1672723151065,47.3522,11.624,11.607,6.15960733]
[1672723151481,47.3522,11.624,11.611,0.06668738]
[1672723151695,0.06839375,11.62,11.609,3.0]
[1672723151905,0.06839375,11.62,11.612,11.81323895]
[1672723152116,3.0,11.638,11.618,11.72]
[1672723152328,3.0,11.635,11.621,11.66]
[1672723152528,47.2661,11.637,11.624,11.72]
[1672723152741,47.2661,11.637,11.624,50.0]
[1672723153164,0.06395985,11.635,11.626,0.06667231]
[1672723153375,0.06395985,11.635,11.629,11.75]
[1672723153588,11.75,11.648,11.63,3.0]
[1672723153799,3.0,11.646,11.63,3.0]
[1672723154001,3.0,11.646,11.635,11.75]
[1672723154213,3.0,11.653,11.64,11.75]
[1672723154423,3.0,11.653,11.641,3.0]
[1672723154744,0.06320596,11.651,11.643,0.06911923]
[1672723155689,11.75,11.649,11.631,11.75]
[1672723155894,3.0,11.648,11.632,3.0]
[1672723156322,11.75,11.649,11.633,3.15478557]
[1672723156629,0.07075283,11.645,11.637,0.06620386]
[1672723156842,0.07092877,11.645,11.639,11.67]
[1672723157052,0.07092877,11.645,11.64,3.0]
[1672723157259,0.07092877,11.645,11.64,6.15478557]
[1672723157472,0.07092877,11.645,11.64,3.15478557]
[1672723157685,0.07092877,11.645,11.641,3.15478557]
[1672723158100,0.07092877,11.645,11.64,3.15478557]
[1672723158309,3.0,11.644,11.628,11.72]
[1672723158518,11.75,11.643,11.625,11.7]
[1672723158735,3.0,11.641,11.625,11.7]
[1672723158943,3.0,11.641,11.626,3.15655083]
[1672723159154,47.1071,11.642,11.626,3.15655083]
[1672723159155,47.1071,11.642,11.626,6.15655083]
[1672723159360,0.06917516,11.638,11.631,11.66]
[1672723159575,0.06474791,11.639,11.632,3.0]
[1672723159996,0.06474791,11.639,11.633,3.15655083]
[1672723161255,0.06474791,11.639,11.632,3.15655083]
[1672723161679,0.06474791,11.639,11.631,0.06369054]
[1672723162834,11.75,11.637,11.631,0.06369054]
[1672723163045,3.0,11.636,11.619,8.31180162]
[1672723163256,3.0,11.636,11.62,3.0]
[1672723163474,3.0,11.636,11.62,6.15691306]
[1672723163678,3.0,11.636,11.622,11.75]
[1672723163890,0.06531758,11.633,11.625,0.06161526]
[1672723164833,0.06531758,11.633,11.628,11.75]
[1672723165249,0.06531758,11.633,11.629,3.15691306]
[1672723165778,47.0918,11.646,11.631,11.75]
[1672723165987,47.0918,11.646,11.632,3.0]
[1672723166193,47.0918,11.646,11.634,11.75]
[1672723166402,11.66,11.651,11.634,11.75]
[1672723166619,50.0,11.662,11.64,11.75]
[1672723166620,3.0,11.653,11.64,11.75]
[1672723166829,0.06918536,11.651,11.642,0.06493965]
[1672723167250,3.0,11.661,11.643,3.0]
[1672723167462,50.0918,11.661,11.648,11.75]
[1672723167672,50.0918,11.661,11.649,3.0]